bitfinex/quotes_SOLUSD_20251001
["timestamp","ask_amount","ask_price","bid_price","bid_amount"]
[1759314310496,4.61148259,216.85,216.82,33.07]
[1759314310990,4.61148259,216.85,216.82,32.42]
[1759314312596,4.61126994,216.86,216.82,33.07]
[1759314312894,5.27126994,216.86,216.82,33.07]
[1759314313482,0.66,216.85,216.82,32.42]
[1759314313690,4.61126994,216.86,216.82,33.07]
[1759314313885,0.66,216.87,216.82,33.07]
[1759314314089,5.27109258,216.87,216.82,33.07]
[1759314316093,5.27109258,216.87,216.82,37.03210953]
[1759314316280,0.66,216.9,216.83,0.65]
[1759314316481,5.27041954,216.9,216.83,0.65]
[1759314317293,16.79646841,216.9,216.83,0.65]
[1759314317900,16.79646841,216.9,216.82,32.42]
[1759314318084,0.71,216.89,216.82,32.42]
[1759314318398,0.71,216.88,216.82,33.1]
[1759314319094,0.71,216.87,216.81,56.78]
[1759314319294,0.71,216.86,216.82,32.42]
[1759314319986,0.71,216.88,216.83,0.68]
[1759314320179,0.71,216.87,216.82,32.42]
[1759314320373,0.71,216.86,216.82,32.42]
[1759314320571,0.71,216.86,216.81,50.76]
[1759314320895,0.71,216.86,216.82,0.68]
[1759314321279,4.6113702,216.86,216.82,0.68]
[1759314321476,5.32102292,216.88,216.83,0.68]
[1759314321681,5.32053315,216.9,216.84,33.1]
[1759314322702,4.61023196,216.91,216.85,0.68]
[1759314323198,4.61023196,216.91,216.85,5.29133678]
[1759314323408,0.71,216.92,216.86,0.67]
[1759314323602,4.6098012,216.93,216.87,32.42]
[1759314323822,5.3198012,216.93,216.87,33.09]
[1759314324910,4.6098012,216.93,216.87,32.42]
[1759314325085,0.71,216.92,216.87,32.42]
[1759314325288,0.71,216.92,216.87,33.09]
[1759314325707,0.71,216.91,216.87,32.42]
[1759314325899,0.71,216.9,216.85,20.8]
[1759314326103,0.71,216.89,216.86,32.4]
[1759314326306,0.71,216.88,216.86,32.4]
[1759314326598,7.03738406,216.94,216.81,35.96]
[1759314326599,5.32105731,216.87,216.81,35.96]
[1759314326939,5.32105731,216.87,216.82,32.4]
[1759314327291,5.32105731,216.87,216.82,33.07]
[1759314328590,5.32105731,216.87,216.83,0.67]
[1759314328591,4.61105731,216.87,216.83,0.67]
[1759314328792,4.61105731,216.87,216.82,37.68207091]
[1759314328989,4.61086056,216.88,216.83,0.67]
[1759314329188,4.61086056,216.88,216.82,37.01207091]
[1759314329389,5.32086056,216.88,216.83,0.67]
[1759314330312,0.71,216.87,216.82,32.4]
[1759314330511,5.32125268,216.87,216.82,33.07]
[1759314331618,0.71,216.87,216.82,37.01205051]
[1759314331816,5.32083849,216.89,216.83,0.67]
[1759314333413,5.32083849,216.89,216.82,37.01205051]
[1759314333727,0.71,216.88,216.82,37.01205051]
[1759314333910,0.71,216.88,216.82,37.68205051]
[1759314335627,0.71,216.9,216.83,0.67]
[1759314335815,5.32041954,216.9,216.83,0.67]
[1759314337826,5.32041954,216.9,216.84,4.61169525]
[1759314338015,5.32041954,216.9,216.85,0.67]
[1759314338329,5.32041954,216.9,216.86,32.4]
[1759314339433,0.71,216.89,216.86,32.4]
[1759314339603,4.60999446,216.92,216.86,32.4]
[1759314339806,5.31982334,216.93,216.87,0.67]
[1759314340014,5.31982334,216.93,216.86,32.4]
[1759314340206,0.71,216.92,216.87,32.4]
[1759314340410,0.71,216.91,216.87,32.4]
[1759314340612,0.71,216.9,216.87,32.4]
[1759314341122,0.71,216.92,216.87,32.4]
[1759314341318,4.60982334,216.93,216.88,0.67]
[1759314341633,5.31982334,216.93,216.88,0.67]
[1759314341828,14.54923422,216.96,216.89,0.67]
[1759314342017,5.31916852,216.96,216.89,0.67]
[1759314342342,0.71,216.97,216.89,0.67]
[1759314342708,0.71,216.97,216.9,20.8]
[1759314343012,0.71,216.97,216.91,33.05]
[1759314343317,0.71,216.97,216.92,4.60999446]
[1759314343318,5.31897614,216.97,216.92,4.60999446]
[1759314343525,0.71,216.96,216.91,33.05]
[1759314345146,0.71,216.96,216.91,37.66019652]
[1759314345514,4.60897614,216.97,216.91,36.99019652]
[1759314345727,5.31871969,216.98,216.92,0.67]
[1759314345931,0.71,216.98,216.92,0.67]
[1759314346649,0.1,216.99,216.94,20.8]
[1759314346842,0.1,216.99,216.95,33.05]
[1759314347213,0.1,216.99,216.96,0.67]
[1759314347727,0.1,216.99,216.96,5.27896966]
[1759314348011,0.1,216.99,216.95,32.38]
[1759314348212,0.1,216.99,216.95,33.05]
[1759314349320,0.71,216.98,216.96,32.38]
[1759314349530,0.71,216.97,216.96,32.38]
[1759314350839,5.31893211,216.97,216.96,32.38]
[1759314352039,4.60873705,216.98,216.96,32.38]
[1759314352223,5.31873705,216.98,216.96,32.38]
[1759314352634,0.71,216.98,216.96,32.38]
[1759314353620,0.7,216.97,216.93,20.8]
[1759314353826,0.7,216.96,216.94,32.36]
[1759314354031,5.30925166,216.96,216.94,32.36]
[1759314355316,4.60871969,216.98,216.94,32.36]
[1759314355515,5.30871969,216.98,216.94,32.36]
[1759314355716,0.7,216.97,216.94,32.36]
[1759314356546,5.30902759,216.97,216.94,32.36]
[1759314357330,0.7,216.96,216.94,32.36]
[1759314357745,5.30871969,216.98,216.94,32.36]
[1759314357947,0.7,216.97,216.94,32.36]
[1759314358845,4.6090187,216.97,216.94,32.36]
[1759314359632,0.7,216.96,216.94,32.36]
[1759314359941,4.6090187,216.97,216.94,32.36]
[1759314360126,5.3090187,216.97,216.94,32.36]
[1759314360321,4.6090187,216.97,216.94,32.36]
[1759314360541,0.7,216.96,216.94,32.36]
[1759314360846,5.30922519,216.96,216.94,32.36]
[1759314361141,4.60922519,216.96,216.94,32.36]
[1759314362347,4.60895745,216.97,216.94,33.03]
[1759314362731,4.70870379,216.99,216.94,33.03]
[1759314362926,4.70870379,216.99,216.94,32.36]
[1759314363141,4.70870379,216.99,216.95,0.67]
[1759314363851,0.1,216.99,216.96,0.67]
[1759314364147,0.1,216.99,216.97,32.36]
[1759314364473,0.1,216.99,216.97,33.03]
[1759314364840,0.1,216.99,216.97,32.36]
[1759314365326,5.40858195,216.99,216.97,32.36]
[1759314366234,4.70858195,216.99,216.97,32.36]
[1759314366436,0.1,216.99,216.97,36.96889517]
[1759314366635,0.1,216.99,216.98,0.67]
[1759314369858,0.1,216.99,216.97,36.96889517]
[1759314370051,0.1,216.99,216.97,37.63889517]
[1759314370248,0.1,216.99,216.97,36.96889517]
[1759314370452,0.1,216.99,216.98,0.67]
[1759314371363,0.1,216.99,216.97,36.96889517]
[1759314371559,0.1,216.99,216.97,37.63889517]
[1759314372654,0.1,216.99,216.97,36.96889517]
[1759314372849,0.1,216.99,216.97,37.63889517]
[1759314373056,0.1,216.99,216.97,33.03]
[1759314373239,0.1,216.99,216.97,32.36]
[1759314373439,0.7,216.98,216.93,35.94]
[1759314373639,4.70851351,216.99,216.94,32.34]
[1759314373640,0.7,216.97,216.94,32.34]
[1759314375563,5.3089455,216.97,216.94,32.34]
[1759314375734,0.1,216.99,216.94,32.34]
[1759314375938,0.7,216.98,216.94,32.34]
[1759314376567,0.7,216.98,216.94,36.94956902]
[1759314378151,0.1,216.99,216.95,0.67]
[1759314378348,0.1,216.99,216.96,32.34]
[1759314378769,0.1,216.99,216.96,33.01]
[1759314379364,0.1,216.99,216.96,32.34]
[1759314379545,0.1,216.99,216.96,37.62906268]
[1759314380438,0.1,216.99,216.96,36.94906268]
[1759314380638,0.1,216.99,216.97,0.68]
[1759314380864,0.1,216.99,216.98,32.34]
[1759314381043,0.1,216.99,216.98,33.02]
[1759314381244,0.1,216.99,216.98,37.62871969]
[1759314381465,0.1,216.99,216.98,36.94871969]
[1759314382838,0.1,216.99,216.98,37.62871969]
[1759314383051,0.1,216.99,216.98,36.94871969]
[1759314383465,0.1,216.99,216.98,32.34]
[1759314383975,0.1,216.99,216.98,36.94871969]
[1759314384174,0.1,216.99,216.98,32.34]
[1759314384674,0.1,216.99,216.98,53.14]
[1759314384985,0.8,216.99,216.98,20.8]
[1759314385284,0.8,216.99,216.98,53.14]
[1759314386353,0.8,216.99,216.98,20.8]
[1759314386556,0.8,216.99,216.98,53.14]
[1759314387074,0.1,216.99,216.98,53.14]
[1759314387770,0.1,216.99,216.98,20.8]
[1759314387968,0.1,216.99,216.98,53.14]
[1759314390575,0.8,216.99,216.98,53.14]
[1759314390872,0.8,216.99,216.98,32.32]
[1759314392668,0.8,216.99,216.78,5.81791957]
[1759314392669,13.59559401,216.93,216.78,5.81791957]
[1759314392857,2.19595081,216.84,216.75,35.94]
[1759314393052,2.19595081,216.83,216.76,32.32]
[1759314393253,0.7,216.82,216.76,53.12]
[1759314393462,0.7,216.81,216.76,53.12]
[1759314393959,5.31237607,216.81,216.76,53.12]
[1759314394274,5.31237607,216.81,216.76,53.77]
[1759314394664,5.31237607,216.81,216.76,32.97]
[1759314394979,5.31237607,216.81,216.76,53.77]
[1759314395879,5.31237607,216.81,216.76,32.97]
[1759314396267,5.31237607,216.81,216.76,53.77]
[1759314397383,2.89595081,216.8,216.75,35.94]
[1759314397574,4.61237607,216.81,216.75,35.94]
[1759314397575,2.19595081,216.78,216.76,32.34]
[1759314397777,0.7,216.77,216.76,32.34]
[1759314398383,5.31318448,216.77,216.75,35.94]
[1759314398685,0.7,216.76,216.75,35.94]
[1759314398888,0.7,216.76,216.75,68.28]
[1759314399877,4.61318448,216.77,216.75,35.94]
[1759314400085,0.7,216.76,216.75,35.94]
[1759314400284,0.7,216.76,216.75,68.28]
[1759314401088,0.7,216.79,216.75,68.28]
[1759314401392,0.7,216.78,216.75,68.28]
[1759314401593,0.7,216.77,216.75,68.28]
[1759314402014,4.61297167,216.78,216.75,68.28]
[1759314402490,5.31297167,216.78,216.75,68.28]
[1759314402680,0.7,216.77,216.75,68.28]
[1759314402890,0.7,216.76,216.75,68.28]
[1759314403066,0.7,216.76,216.75,35.94]
[1759314403390,0.7,216.76,216.75,68.3]
[1759314404074,5.3133973,216.76,216.75,68.3]
[1759314406207,0.7,216.76,216.75,68.3]
[1759314406380,5.3133973,216.76,216.75,68.3]
[1759314407074,4.6133973,216.76,216.75,68.3]
[1759314407277,5.3133973,216.76,216.75,68.3]
[1759314407987,7.50934811,216.76,216.75,68.3]
[1759314409489,19.04152345,216.76,216.75,68.3]
[1759314410102,16.84557264,216.76,216.75,68.3]
[1759314413505,16.14557264,216.76,216.75,68.3]
[1759314413898,4.6133973,216.76,216.75,68.3]
[1759314414488,5.30299899,216.78,216.75,68.3]
[1759314414808,4.61299899,216.78,216.75,68.3]
[1759314415193,4.61275889,216.79,216.75,68.3]
[1759314415391,20.8,216.76,216.7,1e-08]
[1759314415595,2.19595081,216.76,216.71,21.54]
[1759314415808,2.53710581,216.75,216.71,21.54]
[1759314416209,0.69,216.74,216.71,21.54]
[1759314416593,14.54329362,216.74,216.71,21.54]
[1759314416799,0.69,216.74,216.71,21.54]
[1759314417295,4.61403589,216.73,216.71,21.54]
[1759314419089,4.61382522,216.74,216.71,21.54]
[1759314419305,6.80953652,216.76,216.72,0.68]
[1759314419611,5.30358571,216.76,216.71,21.54]
[1759314419802,5.30358571,216.76,216.71,22.22]
[1759314421827,5.94785589,216.79,216.72,0.68]
[1759314423092,10.56080528,216.79,216.72,5.29410262]
[1759314423293,11.25080528,216.79,216.72,5.29410262]
[1759314423715,4.61294939,216.79,216.73,0.68]
[1759314424298,4.61256606,216.8,216.73,0.68]
[1759314424706,11.52964395,216.84,216.75,20.8]
[1759314424707,7.4978155,216.84,216.75,20.8]
[1759314424902,7.4978155,216.84,216.76,33.2]
[1759314425225,0.69,216.83,216.77,0.68]
[1759314426203,4.61212065,216.82,216.77,0.68]
[1759314426508,5.30212065,216.82,216.77,0.68]
[1759314427908,5.30212065,216.82,216.77,5.29317665]
[1759314428104,0.69,216.85,216.78,0.68]
[1759314428304,0.69,216.85,216.78,36.66]
[1759314428720,0.69,216.85,216.79,0.68]
[1759314428910,0.69,216.85,216.8,32.52]
[1759314429104,0.69,216.84,216.8,32.52]
[1759314429826,5.30126994,216.86,216.8,33.2]
[1759314430197,4.61126994,216.86,216.8,32.52]
[1759314430421,0.69,216.85,216.8,32.52]
[1759314430607,0.69,216.84,216.8,32.52]
[1759314431206,0.69,216.83,216.8,32.52]
[1759314431813,0.69,216.83,216.78,35.98]
[1759314431814,0.69,216.82,216.78,35.98]
[1759314432119,0.69,216.81,216.79,32.5]
[1759314432329,0.69,216.8,216.79,32.5]
[1759314432938,2.88595081,216.8,216.79,32.5]
[1759314433126,2.88595081,216.8,216.79,32.54]
[1759314433830,7.49849693,216.8,216.79,32.54]
[1759314434331,5.30254612,216.8,216.79,32.54]
[1759314434533,7.49849693,216.8,216.79,32.54]
[1759314436817,19.02986224,216.8,216.7,36.66000001]
[1759314437015,2.19595081,216.76,216.71,32.52]
[1759314437236,2.88595081,216.75,216.71,32.52]
[1759314437436,0.69,216.74,216.71,32.52]
[1759314438029,2.19595081,216.76,216.71,32.52]
[1759314438332,0.69,216.75,216.71,32.52]
[1759314438636,4.61382301,216.74,216.71,32.52]
[1759314438805,0.69,216.73,216.7,35.98000001]
[1759314439005,2.09900054,216.72,216.71,32.54]
[1759314439220,2.09900054,216.72,216.7,35.98000001]
[1759314439423,22.17120409,216.74,216.71,32.54]
[1759314439629,1.40900054,216.72,216.71,32.54]
[1759314440145,2.12900054,216.72,216.71,32.54]
[1759314440653,6.74324934,216.72,216.71,32.54]
[1759314451663,6.02324934,216.72,216.71,32.54]
[1759314455856,6.68324934,216.72,216.71,32.54]
[1759314456040,6.02324934,216.72,216.71,32.54]
[1759314456845,6.02324934,216.72,216.7,35.98000001]
[1759314457072,4.6142488,216.72,216.71,32.48]
[1759314457242,6.02324934,216.72,216.71,32.48]
[1759314457576,18.21887134,216.72,216.65,0.2]
[1759314457748,1.40900054,216.7,216.66,32.48]
[1759314458137,1.40900054,216.7,216.66,33.16]
[1759314458848,17.55887134,216.72,216.67,0.68]
[1759314459057,17.55887134,216.72,216.68,32.6]
[1759314459260,17.55887134,216.72,216.69,32.58]
[1759314459469,18.21887134,216.72,216.69,32.58]
[1759314459771,2.06900054,216.71,216.69,32.58]
[1759314461448,1.40900054,216.7,216.69,32.58]
[1759314463094,2.06900054,216.7,216.65,0.2]
[1759314463263,1.40900054,216.68,216.66,32.56]
[1759314463462,4.61531361,216.67,216.66,33.24]
[1759314463658,6.02411756,216.68,216.66,33.24]
[1759314463857,20.8,216.73,216.67,0.68]
[1759314464083,1.40900054,216.72,216.67,0.68]
[1759314464390,1.40900054,216.72,216.68,0.68]
[1759314464761,2.06900054,216.72,216.68,0.68]
[1759314464967,2.06900054,216.72,216.66,33.24]
[1759314465165,18.21887134,216.72,216.66,33.24]
[1759314465570,4.6142488,216.72,216.67,0.68]
[1759314465913,4.61382301,216.74,216.67,0.68]
[1759314466259,6.68282355,216.74,216.67,0.68]
[1759314466682,18.21738108,216.74,216.67,0.68]
[1759314466981,18.21738108,216.74,216.68,32.56]
[1759314467179,18.21738108,216.74,216.69,0.68]
[1759314470184,16.14838054,216.74,216.69,0.68]
[1759314470501,16.14838054,216.74,216.7,0.68]
[1759314471001,16.14838054,216.74,216.71,0.68]
[1759314471179,16.14838054,216.74,216.72,32.54]
[1759314471379,11.53455753,216.74,216.72,32.54]
[1759314471807,12.19455753,216.74,216.72,32.54]
[1759314472606,11.53455753,216.74,216.72,32.54]
[1759314472903,13.60355807,216.74,216.72,32.54]
[1759314473283,18.21738108,216.74,216.72,32.54]
[1759314474697,18.26738108,216.74,216.72,32.54]
[1759314480416,16.85838054,216.74,216.72,32.54]
[1759314480618,18.26738108,216.74,216.72,32.54]
[1759314481510,0.71,216.73,216.72,32.54]
[1759314481711,0.71,216.73,216.72,32.48]
[1759314482901,17.55738108,216.74,216.72,32.48]
[1759314483117,0.71,216.73,216.72,32.48]
[1759314483422,5.32403589,216.73,216.72,32.48]
[1759314484608,4.61403589,216.73,216.72,32.48]
[1759314484831,6.73303643,216.73,216.72,32.48]
[1759314485328,6.02303643,216.73,216.72,32.48]
[1759314485714,6.73303643,216.73,216.72,32.48]
[1759314486221,5.32403589,216.73,216.72,32.48]
[1759314486721,4.61403589,216.73,216.72,32.48]
[1759314487121,6.02303643,216.73,216.72,32.48]
[1759314487837,6.73303643,216.73,216.72,32.48]
[1759314489135,6.02303643,216.73,216.72,32.48]
[1759314489735,4.61403589,216.73,216.72,32.48]
[1759314490844,16.14838054,216.74,216.72,32.48]
[1759314491333,16.85838054,216.74,216.72,32.48]
[1759314491640,0.71,216.73,216.72,32.48]
[1759314492026,17.55738108,216.74,216.72,32.48]
[1759314492430,2.11900054,216.73,216.72,32.48]
[1759314492943,16.1498708,216.72,216.66,36.0]
[1759314493144,1.40900054,216.7,216.67,32.44]
[1759314493342,2.11900054,216.7,216.67,32.44]
[1759314494235,4.61488762,216.69,216.67,32.44]
[1759314495120,6.02388816,216.69,216.66,36.0]
[1759314495326,0.71,216.68,216.67,32.44]
[1759314496346,6.73410114,216.68,216.67,32.44]
[1759314500334,7.5281206,216.68,216.67,32.44]
[1759314500741,21.38589365,216.68,216.67,32.44]
[1759314500937,18.47287365,216.68,216.67,32.44]
[1759314501150,5.2733973,216.76,216.67,33.12]
[1759314501464,13.85265393,216.74,216.68,0.68]
[1759314501831,11.53442768,216.75,216.68,0.68]
[1759314502135,25.38644199,216.75,216.68,0.68]
[1759314502544,30.00005213,216.75,216.68,5.29508179]
[1759314502829,30.00005213,216.75,216.69,0.68]
[1759314503135,18.46562445,216.75,216.7,32.44]
[1759314503452,18.46562445,216.75,216.71,0.68]
[1759314504845,18.46562445,216.75,216.72,0.68]
[1759314505155,4.61361014,216.75,216.72,0.68]
[1759314505658,4.61361014,216.75,216.73,0.68]
[1759314505859,4.61361014,216.75,216.74,32.42]
[1759314506734,4.61318448,216.77,216.74,32.42]
[1759314506936,19.15391972,216.77,216.74,32.42]
[1759314507355,14.54073524,216.77,216.74,32.42]
[1759314507526,5.30275889,216.79,216.74,32.42]
[1759314507726,0.69,216.78,216.74,32.42]
[1759314507931,14.54073524,216.77,216.74,32.42]
[1759314508142,0.69,216.76,216.74,32.42]
[1759314508345,13.85073524,216.77,216.74,32.42]
[1759314508744,5.3033973,216.76,216.74,32.42]
[1759314509147,16.14689056,216.76,216.68,35.98]
[1759314509358,2.20302,216.74,216.69,32.4]
[1759314509734,0.69,216.75,216.68,35.98]
[1759314509735,2.20302,216.72,216.68,35.98]
[1759314509937,2.20302,216.7,216.69,32.42]
[1759314510140,2.89302,216.7,216.69,32.42]
[1759314510342,16.74631362,216.7,216.69,32.42]
[1759314510549,13.85329362,216.7,216.69,32.42]
[1759314510764,2.20302,216.72,216.69,32.42]
[1759314510974,19.15882196,216.72,216.69,32.42]
[1759314511471,2.89302,216.71,216.69,32.42]
[1759314511676,2.20302,216.7,216.69,32.42]
[1759314511871,2.89302,216.7,216.69,32.42]
[1759314512243,16.74823302,216.7,216.69,32.42]
[1759314512545,20.67290768,216.7,216.69,32.42]
[1759314512745,18.46988768,216.7,216.69,32.42]
[1759314513158,4.61467466,216.7,216.69,32.42]
[1759314514070,13.85457316,216.71,216.69,32.42]
[1759314514366,0.69,216.7,216.69,32.42]
[1759314514778,20.67207008,216.71,216.69,32.42]
[1759314514963,21.36207008,216.71,216.69,32.42]
[1759314515573,0.69,216.7,216.69,32.42]
[1759314516163,7.50769466,216.7,216.69,32.42]
[1759314517383,4.61467466,216.7,216.69,32.42]
[1759314517885,5.30467466,216.7,216.69,32.42]
[1759314520167,21.3635476,216.7,216.68,35.98]
[1759314520369,2.89302,216.69,216.68,35.98]
[1759314520665,0.69,216.69,216.68,68.38]
[1759314520858,14.54649292,216.69,216.68,68.38]
[1759314521272,19.16138054,216.69,216.68,68.38]
[1759314521585,19.16138054,216.69,216.68,32.4]
[1759314523885,4.61488762,216.69,216.68,32.4]
[1759314524987,7.50790762,216.69,216.68,32.4]
[1759314525587,32.9016196,216.69,216.65,0.2]
[1759314525766,2.20302,216.66,216.65,0.2]
[1759314526081,2.20302,216.66,216.65,32.6]
[1759314526284,4.74080842,216.66,216.65,32.6]
[1759314527487,9.35633505,216.66,216.65,32.6]
[1759314528066,9.35633505,216.66,216.65,0.2]
[1759314528272,9.35633505,216.66,216.65,32.6]
[1759314528892,7.15331505,216.66,216.65,32.6]
[1759314529095,6.46331505,216.66,216.65,32.6]
[1759314531100,7.15331505,216.66,216.65,32.6]
[1759314531298,9.35633505,216.66,216.65,32.6]
[1759314533394,7.15331505,216.66,216.65,0.2]
[1759314533590,9.35633505,216.66,216.65,32.62]
[1759314535003,6.46331505,216.66,216.65,32.62]
[1759314536311,9.38633505,216.66,216.65,32.62]
[1759314536512,8.66633505,216.66,216.65,32.62]
[1759314536694,9.38633505,216.66,216.65,32.62]
[1759314537844,9.38633505,216.66,216.65,0.2]
[1759314538021,9.38633505,216.66,216.65,32.62]
[1759314538540,9.38633505,216.66,216.64,0.1]
[1759314538748,2.92302,216.65,216.64,0.1]
[1759314539421,7.53875967,216.65,216.64,0.1]
[1759314539622,7.53875967,216.65,216.64,32.52]
[1759314540329,13.59559401,216.64,216.63,0.2]
[1759314540640,15.79861401,216.64,216.63,32.62]
[1759314540826,16.51861401,216.64,216.63,32.62]
[1759314541221,30.38022888,216.64,216.63,32.62]
[1759314543021,34.99618161,216.64,216.63,32.62]
[1759314543650,18.4775676,216.64,216.63,32.62]
[1759314543834,20.6805876,216.64,216.63,32.62]
[1759314546255,21.4005876,216.64,216.63,32.62]
[1759314547057,20.6805876,216.64,216.63,32.62]
[1759314547541,21.4005876,216.64,216.63,32.62]
[1759314549056,20.6805876,216.64,216.63,32.62]
[1759314554861,21.4005876,216.64,216.63,32.62]
[1759314555158,42.2005876,216.64,216.63,32.62]
[1759314555358,41.4805876,216.64,216.63,32.62]
[1759314556434,42.2005876,216.64,216.63,32.62]
[1759314557865,41.4805876,216.64,216.63,32.62]
[1759314558159,42.2005876,216.64,216.63,32.62]
[1759314560067,20.6805876,216.64,216.63,32.62]
[1759314560364,18.4775676,216.64,216.63,33.3]
[1759314560671,11.53850284,216.67,216.63,33.3]
[1759314560872,4.6151006,216.68,216.64,0.68]
[1759314561249,16.15285212,216.68,216.64,0.68]
[1759314561854,16.15285212,216.68,216.65,0.68]
[1759314562773,17.56265107,216.68,216.65,0.68]
[1759314563462,17.56265107,216.68,216.63,33.3]
[1759314563661,17.56265107,216.68,216.64,0.68]
[1759314566180,18.21265107,216.68,216.64,0.68]
[1759314567558,18.21265107,216.68,216.63,32.62]
[1759314567872,32.06978402,216.68,216.63,33.3]
[1759314568070,31.41978402,216.68,216.63,33.3]
[1759314568270,1.40979895,216.64,216.63,0.2]
[1759314568579,1.40979895,216.64,216.63,32.6]
[1759314568873,2.05979895,216.64,216.63,32.6]
[1759314569479,15.92077337,216.64,216.63,32.6]
[1759314569679,20.5367261,216.64,216.63,32.6]
[1759314572761,19.12692715,216.64,216.63,32.6]
[1759314572975,20.5367261,216.64,216.63,32.6]
[1759314573465,20.5367261,216.64,216.6,36.0]
[1759314573466,39.01218604,216.61,216.6,36.0]
[1759314573668,41.07198499,216.61,216.6,68.4]
[1759314574183,58.01153031,216.61,216.6,68.4]
[1759314574650,41.34056825,216.61,216.6,68.4]
[1759314574865,18.4807693,216.61,216.6,68.4]
[1759314575064,20.54056825,216.61,216.6,68.4]
[1759314580192,19.89056825,216.61,216.6,68.4]
[1759314582481,19.89056825,216.61,216.6,32.4]
[1759314582980,18.4807693,216.61,216.6,32.4]
[1759314583176,4.61659203,216.61,216.6,33.08]
[1759314583876,4.61659203,216.61,216.6,32.44]
[1759314589207,4.61659203,216.61,216.59,0.2]
[1759314589208,6.67639098,216.61,216.59,0.2]
[1759314589504,6.67639098,216.61,216.6,32.44]
[1759314591204,41.3008312,216.61,216.49,0.2]
[1759314591409,1.40979895,216.55,216.5,0.68]
[1759314591593,2.05979895,216.55,216.52,32.46]
[1759314591980,15.92525778,216.55,216.52,32.46]
[1759314592178,4.61808441,216.54,216.52,32.46]
[1759314592401,6.67788336,216.54,216.53,32.46]
[1759314592580,18.2230944,216.54,216.53,32.46]
[1759314594507,18.2230944,216.54,216.49,0.2]
[1759314594508,32.090476,216.54,216.49,0.2]
[1759314594688,22.20979895,216.52,216.49,0.2]
[1759314594884,22.87979895,216.52,216.49,0.2]
[1759314595795,22.87979895,216.52,216.51,68.46]
[1759314595996,36.7484627,216.52,216.51,68.46]
[1759314596196,50.34405671,216.52,216.51,68.46]
[1759314596391,54.9625677,216.52,216.51,68.46]
[1759314596590,53.55276875,216.52,216.51,68.46]
[1759314596785,54.9625677,216.52,216.51,68.46]
[1759314597705,66.50884518,216.52,216.49,0.2]
[1759314597905,1.40979895,216.5,216.49,0.2]
[1759314598396,6.02873659,216.5,216.49,0.2]
[1759314599002,4.61893764,216.5,216.49,0.2]
[1759314599390,6.02873659,216.5,216.49,0.2]
[1759314600286,6.69873659,216.5,216.49,0.2]
[1759314600504,5.28893764,216.5,216.49,0.2]
[1759314600687,4.61893764,216.5,216.49,0.2]
[1759314601290,6.69873659,216.5,216.49,0.2]
[1759314601506,5.28893764,216.5,216.49,0.2]
[1759314601712,6.69873659,216.5,216.49,0.2]
[1759314601896,5.28893764,216.5,216.49,0.2]
[1759314602091,6.69873659,216.5,216.49,0.2]
[1759314602418,20.56868272,216.5,216.49,0.2]
[1759314603699,18.48888377,216.5,216.49,0.2]